bitfinex/quotes_SOLUSD_20250806
["timestamp","ask_amount","ask_price","bid_price","bid_amount"]
[1754459109567,0.66,164.69,164.67,8.3172953]
[1754459109568,22.54,164.69,164.67,8.3172953]
[1754459109769,21.88,164.69,164.67,8.3172953]
[1754459110068,0.66,164.71,164.65,6.07347086]
[1754459110069,0.66,164.71,164.68,8.3172953]
[1754459110281,21.88,164.72,164.69,8.3172953]
[1754459110428,0.69,164.73,164.7,8.3172953]
[1754459110769,0.03,164.73,164.7,0.36]
[1754459110946,0.03,164.73,164.71,8.3172953]
[1754459111150,0.66,164.72,164.68,8.3172953]
[1754459111358,0.66,164.71,164.67,8.3172953]
[1754459111545,0.69,164.73,164.7,8.3172953]
[1754459111739,0.03,164.73,164.71,8.3172953]
[1754459112081,0.03,164.73,164.68,14.3896781]
[1754459112082,0.66,164.72,164.68,14.3896781]
[1754459112375,26.03,164.73,164.69,8.3172953]
[1754459112674,26.69,164.73,164.68,6.0723828]
[1754459112860,0.66,164.72,164.68,19.35228246]
[1754459113079,13.27989966,164.71,164.66,13.27989966]
[1754459113251,13.27989966,164.71,164.66,19.35293372]
[1754459113446,0.66,164.7,164.66,19.35293372]
[1754459113676,13.27989966,164.71,164.66,19.35293372]
[1754459113842,0.66,164.7,164.66,19.35293372]
[1754459114570,13.93989966,164.69,164.64,13.27989966]
[1754459114765,0.66,164.68,164.64,13.27989966]
[1754459115452,0.66,164.68,164.65,6.07348921]
[1754459115749,13.27989966,164.69,164.65,19.35338887]
[1754459115958,13.27989966,164.69,164.65,6.07348921]
[1754459116167,0.66,164.68,164.64,13.27989966]
[1754459116359,0.66,164.67,164.63,19.35412671]
[1754459116982,26.0,164.71,164.63,19.35412671]
[1754459117278,26.0,164.69,164.65,13.27989966]
[1754459117465,26.0,164.69,164.66,6.07312036]
[1754459118277,13.93989966,164.71,164.66,19.35302002]
[1754459118446,4.06247265,164.7,164.69,13.27989966]
[1754459118648,4.06247265,164.71,164.68,13.27989966]
[1754459119052,39.93989966,164.72,164.68,13.27989966]
[1754459119252,39.93989966,164.72,164.67,0.36]
[1754459119556,26.0,164.72,164.65,15.18330144]
[1754459119757,39.93989966,164.72,164.67,13.27989966]
[1754459119967,0.66,164.71,164.67,13.27989966]
[1754459120491,0.03,164.73,164.7,13.27989966]
[1754459120787,0.03,164.73,164.71,13.27989966]
[1754459121164,0.03,164.73,164.72,13.27989966]
[1754459121686,0.03,164.73,164.72,19.35080786]
[1754459122580,0.03,164.73,164.72,6.0709082]
[1754459122890,0.03,164.73,164.72,19.35080786]
[1754459127897,0.03,164.73,164.72,19.71080786]
[1754459129596,0.03,164.73,164.72,19.35080786]
[1754459130469,0.03,164.73,164.72,6.0709082]
[1754459130670,0.03,164.73,164.72,19.35080786]
[1754459132695,0.03,164.73,164.72,14.36820591]
[1754459132904,0.03,164.73,164.72,14.72820591]
[1754459133091,0.03,164.73,164.72,103.82820591]
[1754459133474,0.69,164.73,164.72,95.1709082]
[1754459133875,0.69,164.73,164.72,89.1]
[1754459134389,8.98729771,164.73,164.68,14.36968051]
[1754459134581,0.7,164.72,164.68,14.36968051]
[1754459134772,8.32729771,164.73,164.68,14.36968051]
[1754459134773,0.7,164.71,164.68,14.36968051]
[1754459135399,0.03,164.73,164.68,6.4323828]
[1754459135610,0.03,164.73,164.7,8.29729771]
[1754459136106,0.03,164.73,164.71,6.07127678]
[1754459136482,0.03,164.73,164.7,6.07159145]
[1754459136689,0.7,164.72,164.69,6.07188722]
[1754459136891,0.7,164.71,164.69,6.07188722]
[1754459137076,0.7,164.7,164.68,6.07228452]
[1754459138798,0.7,164.7,164.65,23.84034328]
[1754459139087,0.7,164.7,164.67,8.29729771]
[1754459139524,8.29729771,164.72,164.67,8.29729771]
[1754459139716,4.79874031,164.73,164.69,8.29729771]
[1754459140018,0.7,164.72,164.67,8.29729771]
[1754459140323,0.7,164.72,164.69,8.29729771]
[1754459140521,0.7,164.72,164.69,89.1]
[1754459140693,0.7,164.72,164.69,97.39729771]
[1754459140898,0.7,164.72,164.69,103.46894642]
[1754459141599,0.7,164.72,164.69,95.17164871]
[1754459141804,0.7,164.71,164.69,95.17164871]
[1754459142118,0.7,164.71,164.69,89.1]
[1754459143310,4.79861292,164.73,164.69,89.1]
[1754459143511,8.99729771,164.72,164.69,95.17201394]
[1754459144021,0.7,164.72,164.69,95.17201394]
[1754459144381,8.99729771,164.72,164.69,95.17201394]
[1754459144713,0.7,164.72,164.69,95.17201394]
[1754459144896,0.7,164.72,164.69,103.46931165]
[1754459145279,0.03,164.73,164.69,103.46931165]
[1754459145483,0.03,164.73,164.7,8.29729771]
[1754459145787,0.03,164.73,164.7,0.36]
[1754459146005,0.7,164.72,164.7,8.29729771]
[1754459146290,0.03,164.73,164.7,8.29729771]
[1754459146498,0.73,164.73,164.7,8.29729771]
[1754459146817,0.03,164.73,164.7,8.29729771]
[1754459147114,0.03,164.73,164.7,14.36876996]
[1754459147614,0.03,164.73,164.71,8.29729771]
[1754459147790,0.03,164.73,164.7,14.36876996]
[1754459147991,0.73,164.73,164.7,14.36876996]
[1754459151029,0.73,164.73,164.7,103.46876996]
[1754459152030,0.03,164.73,164.72,8.29729771]
[1754459152400,4.09878413,164.73,164.72,8.29729771]
[1754459152601,0.03,164.73,164.72,8.29729771]
[1754459152816,4.09878413,164.73,164.72,8.29729771]
[1754459153017,0.03,164.73,164.72,14.72820591]
[1754459153327,4.09878413,164.73,164.72,14.72820591]
[1754459153934,0.03,164.73,164.72,14.72820591]
[1754459154108,4.09878413,164.73,164.72,14.72820591]
[1754459154310,0.03,164.73,164.72,14.72820591]
[1754459154627,4.09878413,164.73,164.72,14.72820591]
[1754459154815,0.03,164.73,164.72,14.72820591]
[1754459155019,4.09878413,164.73,164.72,14.72820591]
[1754459155329,0.03,164.73,164.72,14.72820591]
[1754459155522,4.09878413,164.73,164.72,14.72820591]
[1754459155849,0.03,164.73,164.72,14.72820591]
[1754459156128,0.73,164.73,164.71,6.07115135]
[1754459156340,0.03,164.73,164.71,14.36844906]
[1754459157239,4.78474897,164.72,164.7,8.29729771]
[1754459157537,4.78474897,164.72,164.69,14.36931179]
[1754459157713,4.08474897,164.72,164.69,14.36931179]
[1754459157918,4.78474897,164.72,164.69,14.36931179]
[1754459158233,0.03,164.73,164.71,8.29729771]
[1754459158440,0.03,164.73,164.72,8.29729771]
[1754459160206,0.03,164.73,164.72,8.65729771]
[1754459161252,0.03,164.73,164.72,8.29729771]
[1754459162120,0.03,164.73,164.72,14.36820591]
[1754459163347,4.11764275,164.73,164.72,14.36820591]
[1754459163813,4.11764275,164.73,164.71,6.07127678]
[1754459164017,0.03,164.73,164.71,6.07127678]
[1754459164240,0.03,164.73,164.72,8.29729771]
[1754459164441,4.11923942,164.73,164.72,8.29729771]
[1754459164948,4.11923942,164.73,164.72,14.36820591]
[1754459165621,4.11923942,164.73,164.72,103.46820591]
[1754459165821,0.03,164.73,164.72,103.46820591]
[1754459166036,4.12094506,164.73,164.72,103.46820591]
[1754459167516,4.12094506,164.73,164.72,14.72820591]
[1754459167517,0.03,164.73,164.72,14.72820591]
[1754459168056,0.03,164.73,164.72,14.36820591]
[1754459168422,0.03,164.73,164.72,16.79915191]
[1754459168725,0.03,164.73,164.72,17.15915191]
[1754459169535,0.03,164.75,164.72,17.15915191]
[1754459169536,0.03,164.75,164.74,41.10621557]
[1754459169736,0.03,164.75,164.74,160.34351328]
[1754459169930,0.03,164.75,164.74,160.70351328]
[1754459170150,1e-08,164.75,164.74,160.70351328]
[1754459170653,1e-08,164.75,164.74,166.77368445]
[1754459171052,1e-08,164.75,164.74,158.47638674]
[1754459171261,1e-08,164.75,164.74,166.77368445]
[1754459172457,1e-08,164.75,164.74,166.41368445]
[1754459173152,1e-08,164.75,164.74,166.77368445]
[1754459174129,0.03,164.79,164.76,15.10621557]
[1754459174323,0.03,164.79,164.78,8.29729771]
[1754459174861,1e-08,164.79,164.78,33.55289793]
[1754459175166,0.1,164.81,164.78,33.55289793]
[1754459175167,0.1,164.81,164.8,26.0]
[1754459175461,0.1,164.81,164.8,64.43459542]
[1754459175664,10.83761864,164.86,164.81,15.10621557]
[1754459175830,10.83761864,164.86,164.85,8.29729771]
[1754459176036,10.83761864,164.86,164.85,30.13729771]
[1754459176233,10.83761864,164.86,164.85,21.84]
[1754459176437,11.49761864,164.86,164.85,8.29729771]
[1754459177642,11.49761864,164.86,164.81,21.84]
[1754459177849,0.66,164.85,164.82,8.29729771]
[1754459178160,8.95729771,164.85,164.81,8.29729771]
[1754459178338,0.66,164.84,164.83,8.29729771]
[1754459178538,0.66,164.84,164.82,8.29729771]
[1754459178777,0.66,164.84,164.79,21.84]
[1754459178778,8.95729771,164.84,164.79,21.84]
[1754459178983,8.95729771,164.84,164.74,15.53498043]
[1754459178984,0.66,164.83,164.75,21.1760183]
[1754459179156,8.95729771,164.83,164.78,8.29729771]
[1754459179335,0.66,164.82,164.78,8.29729771]
[1754459180346,0.66,164.82,164.79,8.29729771]
[1754459180553,0.66,164.82,164.81,8.29729771]
[1754459180869,0.66,164.84,164.81,8.29729771]
[1754459181034,0.66,164.83,164.82,8.29729771]
[1754459181468,0.66,164.83,164.78,6.06848372]
[1754459181643,8.95729771,164.83,164.78,14.36578143]
[1754459181851,0.66,164.82,164.78,14.36578143]
[1754459182844,0.66,164.82,164.79,8.29729771]
[1754459183264,8.95729771,164.82,164.77,36.26625919]
[1754459183471,8.95729771,164.81,164.77,21.9]
[1754459183660,0.66,164.8,164.77,6.12904783]
[1754459184375,0.66,164.8,164.77,0.06]
[1754459184669,8.29729771,164.78,164.7,21.17786098]
[1754459184870,8.95729771,164.77,164.72,8.29729771]
[1754459185163,0.66,164.76,164.71,8.29729771]
[1754459185651,0.66,164.76,164.71,14.36826668]
[1754459185967,8.95729771,164.76,164.71,14.36826668]
[1754459186136,0.66,164.75,164.71,14.36826668]
[1754459186335,8.29729771,164.76,164.71,14.36826668]
[1754459186336,0.66,164.74,164.71,14.36826668]
[1754459187069,0.66,164.76,164.72,8.29729771]
[1754459187258,8.29729771,164.77,164.72,8.29729771]
[1754459187459,0.66,164.75,164.72,8.29729771]
[1754459187659,0.66,164.77,164.74,14.36739718]
[1754459188562,12.36369243,164.79,164.74,14.36739718]
[1754459188563,4.06639472,164.79,164.76,8.29729771]
[1754459188765,0.66,164.79,164.76,8.29729771]
[1754459189280,0.66,164.78,164.76,8.29729771]
[1754459189657,0.66,164.77,164.74,14.36739718]
[1754459189983,0.66,164.76,164.74,14.36739718]
[1754459190181,8.29729771,164.79,164.75,8.29729771]
[1754459190182,0.66,164.77,164.75,8.29729771]
[1754459190348,0.66,164.79,164.76,8.29729771]
[1754459190551,0.66,164.78,164.76,8.29729771]
[1754459190765,4.726953,164.8,164.76,8.29729771]
[1754459191066,0.66,164.79,164.76,8.29729771]
[1754459191591,0.66,164.78,164.75,8.29729771]
[1754459191746,8.29729771,164.79,164.75,14.3667414]
[1754459191943,4.066953,164.8,164.76,8.29729771]
[1754459192171,4.726953,164.8,164.77,8.29729771]
[1754459192466,0.66,164.8,164.77,8.29729771]
[1754459192655,0.66,164.79,164.77,8.29729771]
[1754459193155,0.66,164.79,164.76,8.29729771]
[1754459193463,0.66,164.81,164.77,8.29729771]
[1754459193677,12.36425071,164.82,164.78,6.06869765]
[1754459193878,0.72,164.8,164.78,6.06869765]
[1754459194863,0.72,164.79,164.77,6.06900862]
[1754459195372,0.72,164.79,164.77,14.36630633]
[1754459195574,0.03,164.78,164.77,14.36630633]
[1754459198372,0.03,164.78,164.77,103.88630633]
[1754459198667,0.03,164.78,164.77,21.59522419]
[1754459198851,0.03,164.78,164.77,29.8925219]
[1754459199241,4.786953,164.85,164.77,29.8925219]
[1754459199242,4.786953,164.85,164.77,71.06518682]
[1754459199459,4.786953,164.85,164.82,8.29729771]
[1754459199753,0.72,164.84,164.82,8.29729771]
[1754459200181,4.066953,164.85,164.82,8.29729771]
[1754459200543,4.066953,164.85,164.83,8.29729771]
[1754459200850,10.83761864,164.86,164.84,8.29729771]
[1754459201049,0.72,164.85,164.78,22.24]
[1754459201256,0.72,164.85,164.82,8.29729771]
[1754459201464,0.72,164.85,164.83,6.06685676]
[1754459201749,0.72,164.85,164.82,6.06715278]
[1754459201949,0.72,164.84,164.82,14.36445049]
[1754459202665,11.55761864,164.86,164.83,8.29729771]
[1754459203178,0.72,164.85,164.83,8.29729771]
[1754459203355,0.72,164.85,164.83,14.36410438]
[1754459204763,10.83761864,164.86,164.83,14.36410438]
[1754459205079,10.83761864,164.86,164.85,8.29729771]
[1754459205286,10.83761864,164.86,164.84,0.42]
[1754459205455,10.83761864,164.86,164.85,14.36341842]
[1754459206366,11.55761864,164.86,164.85,6.06612071]
[1754459206680,10.83761864,164.86,164.85,14.36341842]
[1754459207757,10.83761864,164.86,164.85,8.29729771]
[1754459207957,11.55761864,164.86,164.84,8.29729771]
[1754459208981,11.55761864,164.86,164.84,103.46350419]
[1754459209581,11.55761864,164.86,164.84,95.16620648]
[1754459209883,11.55761864,164.86,164.84,103.46350419]
[1754459211278,0.72,164.85,164.84,89.1]
[1754459211481,10.83761864,164.86,164.84,103.46378642]
[1754459212451,11.55761864,164.86,164.84,103.46378642]
[1754459213080,11.55761864,164.86,164.84,14.36378642]
[1754459214183,10.83761864,164.86,164.85,8.29729771]
[1754459216076,10.83761864,164.86,164.85,14.36341842]
[1754459216666,10.83761864,164.86,164.85,36.16341842]
[1754459216977,10.83761864,164.86,164.85,36.58341842]
[1754459218993,10.83761864,164.86,164.85,125.26341842]
[1754459220290,11.55761864,164.86,164.85,116.96612071]
[1754459220662,11.55761864,164.86,164.83,8.29729771]
[1754459220663,11.55761864,164.86,164.84,6.06637507]
[1754459220997,0.72,164.85,164.84,6.06637507]
[1754459221160,0.72,164.85,164.79,15.1701057]
[1754459221477,0.72,164.85,164.81,30.09729771]
[1754459221685,0.72,164.85,164.81,21.8]
[1754459221874,9.01729771,164.85,164.81,21.8]
[1754459222071,0.72,164.84,164.81,30.09729771]
[1754459222393,0.72,164.83,164.81,36.16459774]
[1754459224794,0.67,164.85,164.81,27.86730003]
[1754459224962,0.67,164.84,164.82,8.29729771]
[1754459225163,0.67,164.84,164.81,36.16459774]
[1754459225497,0.67,164.83,164.81,36.16459774]
[1754459227991,0.67,164.83,164.81,125.26459774]
[1754459228491,10.83761864,164.86,164.82,8.71729771]
[1754459228669,10.83761864,164.86,164.85,8.29729771]
[1754459228866,10.83761864,164.86,164.85,8.71729771]
[1754459229167,10.83761864,164.86,164.85,14.36341842]
[1754459230101,11.50761864,164.86,164.85,6.06612071]
[1754459231182,11.50761864,164.86,164.84,36.14369501]
[1754459231375,0.67,164.85,164.83,6.06682003]
[1754459231584,0.67,164.84,164.83,6.06682003]
[1754459232193,10.83761864,164.86,164.83,6.06682003]
[1754459232374,10.83761864,164.86,164.83,14.36411774]
[1754459232577,10.83761864,164.86,164.85,8.29729771]
[1754459232782,10.83761864,164.86,164.85,8.71729771]
[1754459233495,10.83761864,164.86,164.85,14.78341842]
[1754459233998,10.83761864,164.86,164.85,14.36341842]
[1754459234801,10.83761864,164.86,164.85,6.06612071]
[1754459235095,10.83761864,164.86,164.85,14.36341842]
[1754459236416,11.50761864,164.86,164.85,14.36341842]
[1754459237470,10.83761864,164.86,164.85,14.36341842]
[1754459238500,10.86761864,164.86,164.85,14.36341842]
[1754459238807,10.86761864,164.86,164.85,6.06612071]
[1754459238974,10.86761864,164.86,164.85,14.36341842]
[1754459239709,10.86761864,164.86,164.85,103.46341842]
[1754459241176,11.53761864,164.86,164.85,103.46341842]
[1754459241375,11.53761864,164.86,164.83,15.1671419]
[1754459241376,11.53761864,164.86,164.83,6.06674107]
[1754459241614,0.67,164.85,164.81,6.06759298]
[1754459241786,8.96729771,164.85,164.81,27.84759298]
[1754459241987,0.67,164.84,164.81,27.84759298]
[1754459242404,8.29729771,164.85,164.81,27.84759298]
[1754459242601,0.67,164.83,164.81,27.84759298]
[1754459242804,0.67,164.83,164.81,36.14489069]
[1754459243798,19.16491635,164.86,164.81,21.78]
[1754459243799,8.29729771,164.85,164.81,21.78]
[1754459243986,0.67,164.82,164.81,6.06759298]
[1754459244188,0.67,164.82,164.75,0.06]
[1754459244189,8.96729771,164.82,164.75,0.06]
[1754459244390,8.29729771,164.8,164.75,8.35729771]
[1754459244595,0.67,164.81,164.75,8.35729771]
[1754459244596,8.29729771,164.78,164.75,6.12969557]
[1754459244810,8.29729771,164.78,164.75,0.06]
[1754459244811,0.67,164.77,164.75,0.06]
[1754459245010,8.96729771,164.77,164.75,0.06]
[1754459245211,4.08580797,164.81,164.75,6.1297931]
[1754459245398,0.67,164.79,164.76,8.29729771]
[1754459246080,13.05310962,164.82,164.78,8.29729771]
[1754459246285,0.67,164.82,164.78,8.29729771]
[1754459246728,4.08543379,164.82,164.78,8.29729771]
[1754459247017,12.3827315,164.83,164.78,8.71729771]
[1754459247228,4.08543379,164.82,164.79,14.36562709]
[1754459247393,0.67,164.82,164.79,14.36562709]
[1754459247598,0.67,164.82,164.77,21.76]
[1754459247599,8.96729771,164.81,164.77,27.82902305]
[1754459247907,8.29729771,164.79,164.75,21.84]
[1754459248211,8.29729771,164.77,164.75,0.06]
[1754459248519,8.29729771,164.76,164.75,0.06]
[1754459248704,8.96729771,164.76,164.75,0.06]
[1754459248895,13.05069576,164.76,164.75,0.06]
[1754459249083,8.96729771,164.76,164.75,0.06]
[1754459249931,13.0485329,164.76,164.75,0.06]
[1754459250285,8.96729771,164.76,164.75,0.06]
[1754459250708,13.94824854,164.76,164.75,0.06]
[1754459250895,18.02948373,164.76,164.75,0.06]
[1754459251399,13.94824854,164.76,164.75,0.06]
[1754459251995,18.02369146,164.76,164.75,0.06]
[1754459252723,24.09312578,164.76,164.75,0.06]
[1754459254323,4.07544292,164.76,164.75,0.06]
[1754459254619,13.98824854,164.78,164.75,0.06]
[1754459254832,13.98824854,164.8,164.75,13.33824854]
[1754459255020,4.06527268,164.79,164.75,13.33824854]
[1754459255526,7.51720257,164.81,164.78,13.27824854]
[1754459255687,7.51720257,164.81,164.79,13.27824854]
[1754459256092,7.51720257,164.81,164.79,19.3464921]
[1754459256391,7.51720257,164.81,164.8,13.27824854]
[1754459256621,7.51720257,164.81,164.79,19.3464921]
[1754459256808,7.51720257,164.81,164.79,13.27824854]
[1754459256990,0.71,164.8,164.76,19.34768286]
[1754459257208,0.71,164.8,164.77,13.27824854]
[1754459257605,7.51720257,164.81,164.78,13.27824854]
[1754459257817,7.51720257,164.81,164.79,13.27824854]
[1754459258122,7.51720257,164.81,164.79,19.34643364]
[1754459260425,7.51720257,164.81,164.8,13.27824854]
[1754459261693,8.22720257,164.81,164.77,6.06871434]
[1754459261907,0.71,164.8,164.77,19.34696288]
[1754459262710,0.71,164.79,164.76,19.34761245]
[1754459262926,0.71,164.79,164.77,13.27824854]
[1754459263324,8.22720257,164.81,164.77,13.27824854]
[1754459263522,0.71,164.8,164.77,13.27824854]
[1754459263832,0.71,164.8,164.77,19.34721142]
[1754459264029,0.71,164.79,164.76,13.27824854]
[1754459264861,0.71,164.79,164.76,19.34752028]
[1754459265024,0.71,164.78,164.75,13.33824854]
[1754459265745,0.71,164.78,164.75,102.43824854]
[1754459265947,0.71,164.78,164.75,108.50789965]
[1754459266127,0.71,164.78,164.75,19.40789965]
[1754459266527,0.71,164.78,164.75,13.33824854]
[1754459267456,13.98824854,164.77,164.75,0.06]
[1754459267752,13.27824854,164.76,164.75,0.06]
[1754459267941,13.98824854,164.76,164.75,0.06]
[1754459268742,20.05768286,164.76,164.75,0.06]
[1754459268941,13.98824854,164.76,164.75,0.06]
[1754459269353,0.71,164.76,164.75,0.06]
[1754459269563,13.98824854,164.76,164.75,0.06]
[1754459269851,13.27824854,164.78,164.75,0.06]
[1754459270763,13.98824854,164.78,164.75,0.06]
[1754459272257,26.0,164.79,164.77,13.27824854]
[1754459272449,26.71,164.79,164.76,13.27824854]
[1754459272640,0.71,164.78,164.75,13.33824854]
[1754459272839,44.15062649,164.8,164.75,13.75824854]
[1754459273043,30.87237795,164.8,164.76,13.27824854]
[1754459273967,44.15062649,164.8,164.76,13.27824854]
[1754459274179,0.71,164.79,164.76,6.06942299]
[1754459274659,0.71,164.78,164.75,6.12969063]
[1754459275036,0.71,164.78,164.75,19.40793917]
[1754459275230,30.87237795,164.8,164.75,19.40793917]
[1754459275437,0.71,164.79,164.75,6.12969063]
[1754459275656,0.71,164.78,164.75,19.40793917]
[1754459275961,8.98824854,164.78,164.75,0.06]
[1754459276950,13.27824854,164.78,164.75,0.06]
[1754459277549,13.27824854,164.79,164.75,0.06]
[1754459277767,13.27824854,164.78,164.75,0.06]
[1754459278266,13.98824854,164.78,164.75,0.06]
[1754459278747,0.71,164.77,164.75,0.06]
[1754459278953,13.98824854,164.77,164.75,0.06]
[1754459279148,0.71,164.76,164.75,0.06]
[1754459280256,13.98824854,164.76,164.75,0.06]
[1754459280759,9.00895224,164.76,164.75,0.06]
[1754459281163,15.07838656,164.76,164.75,0.06]
[1754459281770,36.83838656,164.76,164.75,0.06]
[1754459282185,22.47,164.76,164.75,0.06]
[1754459282340,8.29895224,164.76,164.75,0.06]
[1754459282535,35.00895224,164.76,164.75,0.06]
[1754459282760,39.99072273,164.76,164.75,0.06]
[1754459282960,44.05745145,164.76,164.75,0.06]
[1754459283272,26.0,164.74,164.73,0.06]
[1754459283446,61.04072273,164.74,164.73,0.06]
[1754459283647,61.75072273,164.74,164.73,0.06]
[1754459283870,65.81895548,164.74,164.73,0.06]
[1754459285348,65.10895548,164.74,164.73,0.06]
[1754459285867,65.81895548,164.74,164.73,0.06]
[1754459286073,65.10895548,164.74,164.73,0.06]
[1754459286272,51.82823275,164.74,164.73,0.06]
[1754459286587,65.10895548,164.74,164.73,0.06]
[1754459286956,65.81895548,164.74,164.73,0.06]
[1754459287277,65.10895548,164.74,164.73,0.06]
[1754459287980,65.81895548,164.74,164.73,0.06]
[1754459288557,65.10895548,164.74,164.73,0.06]
[1754459289985,65.81895548,164.74,164.73,0.06]
[1754459290754,65.10895548,164.74,164.73,0.06]
[1754459291892,65.81895548,164.74,164.73,0.06]
[1754459292180,44.05895548,164.74,164.73,0.06]
[1754459292351,51.80823275,164.74,164.73,0.06]
[1754459292549,65.08895548,164.74,164.73,0.06]
[1754459293287,4.06823275,164.74,164.73,0.72]
[1754459293493,25.80823275,164.74,164.73,0.72]
[1754459293874,25.80823275,164.74,164.73,6.79053967]
[1754459294201,25.80823275,164.74,164.73,0.06]
[1754459294405,25.80823275,164.74,164.73,0.72]
[1754459294570,25.80823275,164.74,164.73,0.06]
[1754459294764,21.74,164.74,164.73,0.06]
[1754459294973,25.81567501,164.74,164.73,0.06]
[1754459295173,4.07567501,164.74,164.73,6.79053967]
[1754459295374,25.81567501,164.75,164.73,6.79053967]
[1754459295580,18.06639774,164.74,164.73,0.06]
[1754459297500,4.78567501,164.74,164.73,0.06]
[1754459297670,18.06639774,164.74,164.73,0.06]
[1754459297871,24.13656891,164.74,164.73,0.06]
[1754459300169,65.09639774,164.74,164.73,0.06]
[1754459300520,71.87656891,164.74,164.73,0.06]
[1754459302699,66.89822558,164.74,164.73,0.06]
[1754459305582,82.00444115,164.74,164.73,0.06]
[1754459306704,87.09903491,164.74,164.73,0.06]
[1754459307979,97.17986909,164.74,164.66,0.72]
[1754459308283,26.0,164.71,164.68,8.3023794]
[1754459308476,26.0,164.71,164.66,0.72]
[1754459308477,26.0,164.71,164.67,8.3023794]
[1754459308676,34.12284219,164.7,164.66,6.1330543]
[1754459308885,12.38311822,164.69,164.67,0.66]
[1754459309087,30.0423794,164.68,164.66,0.06]
[1754459309598,8.3023794,164.67,164.66,0.06]
[1754459309807,13.09406853,164.67,164.66,0.06]
[1754459311623,19.16682009,164.67,164.66,0.06]
[1754459314023,24.26667743,164.67,164.66,0.06]
[1754459314417,13.09406853,164.67,164.66,0.06]
[1754459314743,12.38406853,164.67,164.66,0.06]
[1754459314944,38.38406853,164.67,164.66,0.06]
[1754459316703,30.08168913,164.67,164.66,0.06]
[1754459316905,4.08168913,164.67,164.66,0.77]
[1754459317111,21.74,164.68,164.66,9.0723794]
[1754459317314,21.74,164.68,164.67,0.71]
[1754459317514,34.11541613,164.68,164.66,0.06]
[1754459317803,12.37583044,164.67,164.66,0.06]
[1754459318406,8.3023794,164.67,164.66,0.06]
[1754459318707,21.74,164.68,164.66,0.77]
[1754459319121,30.0423794,164.68,164.66,0.77]
[1754459319301,30.0423794,164.68,164.66,0.06]
[1754459319916,8.3023794,164.67,164.66,0.06]
[1754459320129,13.06720558,164.67,164.66,0.06]
[1754459320931,8.9923794,164.67,164.66,0.06]
[1754459321112,13.0678036,164.67,164.66,0.06]
[1754459322033,19.14055516,164.67,164.66,0.06]
[1754459322615,4.7654242,164.67,164.66,0.06]
[1754459322934,12.3778036,164.67,164.66,0.06]
[1754459325020,13.0678036,164.67,164.66,0.06]
[1754459325619,19.14055516,164.67,164.66,0.06]
[1754459325954,10.83817576,164.67,164.66,0.06]
[1754459326119,12.3778036,164.67,164.66,0.06]
[1754459326854,19.14055516,164.67,164.66,0.06]
[1754459329537,24.2404125,164.67,164.66,0.06]
[1754459330781,12.3778036,164.67,164.66,0.06]
[1754459330954,40.17055516,164.67,164.66,0.06]
[1754459331881,25.7954242,164.67,164.66,0.06]
[1754459332067,34.0978036,164.67,164.66,0.06]
[1754459332709,48.37811031,164.67,164.66,0.06]
[1754459333166,49.06811031,164.67,164.66,0.06]
[1754459334167,54.16796765,164.67,164.66,0.06]
[1754459334473,49.06811031,164.67,164.66,0.06]
[1754459335293,48.37811031,164.67,164.66,0.06]
[1754459335499,42.30535875,164.67,164.66,0.06]
[1754459337392,48.37811031,164.67,164.66,0.06]
[1754459337775,49.06811031,164.67,164.66,0.06]
[1754459337993,54.16796765,164.67,164.66,0.06]
[1754459338396,49.06811031,164.67,164.66,0.06]
[1754459338784,54.16796765,164.67,164.66,0.06]
[1754459341201,69.27418322,164.67,164.66,0.06]
[1754459341402,34.3023794,164.65,164.64,0.06]
[1754459341602,49.20401917,164.65,164.64,0.06]
[1754459341899,23.40859497,164.63,164.62,0.06]
[1754459342079,54.30275394,164.63,164.62,0.06]
[1754459342285,63.49884032,164.63,164.62,0.06]